fUST/lending_fUST_20250905
["ID","MTS","AMOUNT","RATE_DAILY","PERIOD"]
[383661303,1757076649033,-480.0,0.00014794,2]
[383661305,1757076649042,-480.0,0.00014794,2]
[383661307,1757076649051,-326.82,0.00014794,2]
[383661309,1757076649060,-480.0,0.00014794,2]
[383661311,1757076649071,-12192.34,0.00014794,2]
[383661313,1757076649083,-480.0,0.00014794,2]
[383661315,1757076649093,-480.0,0.00014794,2]
[383661317,1757076649103,-480.0,0.00014794,2]
[383661319,1757076649112,-480.0,0.00014794,2]
[383661321,1757076649123,-480.0,0.00014794,2]
[383661323,1757076649132,-574.88,0.00014794,2]
[383661325,1757076649142,-480.0,0.00014794,2]
[383661327,1757076649154,-480.0,0.00014794,2]
[383661329,1757076649166,-480.0,0.00014794,2]
[383661331,1757076649176,-200.0,0.00014794,2]
[383661333,1757076649185,-480.0,0.00014794,2]
[383661335,1757076649194,-520.95,0.00014794,2]
[383661337,1757076649204,-480.0,0.00014794,2]
[383661339,1757076649214,-480.0,0.00014794,2]
[383661341,1757076649224,-619.76,0.00014794,2]
[383661343,1757076649234,-480.0,0.00014794,2]
[383661345,1757076649244,-480.0,0.00014794,2]
[383661347,1757076649254,-480.0,0.00014794,2]
[383661349,1757076649263,-1133.21,0.00014794,2]
[383661351,1757076649273,-487.47,0.00014794,2]
[383661353,1757076649282,-480.0,0.00014794,2]
[383661354,1757076649292,-480.0,0.00014794,2]
[383661356,1757076649302,-480.0,0.00014794,2]
[383661358,1757076649311,-480.0,0.00014794,2]
[383661360,1757076649320,-634.07,0.00014794,2]
[383661361,1757076649330,-151.0,0.00014794,2]
[383661362,1757076649339,-549.27,0.00014794,2]
[383661363,1757076649349,-151.0,0.00014794,2]
[383661364,1757076649359,-188.803235,0.00014794,2]
[383661365,1757076649368,-480.0,0.00014794,2]
[383661366,1757076649377,-480.0,0.00014794,2]
[383661367,1757076649387,-1034.63,0.00014794,2]
[383661368,1757076649396,-422.78712573,0.00014805,2]
[383661369,1757076649406,-1000.0,0.00014821,2]
[383661370,1757076649418,-322607.9223332,0.0001488,2]
[383661371,1757076649427,-420.0,0.0001491,2]
[383661372,1757076649437,-353.74,0.0001491,2]
[383661373,1757076649446,-353.74,0.0001491,2]
[383661374,1757076649456,-353.74,0.0001491,2]
[383661375,1757076649466,-353.74,0.0001491,2]
[383661376,1757076649475,-353.74,0.0001491,2]
[383661377,1757076649485,-353.74,0.0001491,2]
[383661378,1757076649494,-353.72,0.0001491,2]
[383661379,1757076649504,-160.0,0.00015,2]
[383661380,1757076649514,-420.0,0.00015009,2]
[383661381,1757076649523,-620.61,0.00015025,2]
[383661382,1757076649533,-620.61,0.0001504,2]
[383661383,1757076649542,-175.096731,0.00015068,2]
[383661384,1757076649552,-480.0,0.00015068,2]
[383661386,1757076649562,-480.0,0.00015068,2]
[383661387,1757076649572,-480.0,0.00015068,2]
[383661389,1757076649582,-480.0,0.00015068,2]
[383661390,1757076649591,-480.0,0.00015068,2]
[383661393,1757076649601,-1544.22,0.00015068,2]
[383661394,1757076649610,-480.0,0.00015068,2]
[383661396,1757076649620,-2572.66,0.00015068,2]
[383661398,1757076649629,-480.0,0.00015068,2]
[383661400,1757076649639,-678.87,0.00015068,2]
[383661414,1757076649753,-480.0,0.00015068,2]
[383661416,1757076649763,-716.31,0.00015068,2]
[383661418,1757076649772,-476.75880323,0.00015068,2]
[383661420,1757076649782,-480.0,0.00015068,2]
[383661421,1757076649791,-480.0,0.00015068,2]
[383661424,1757076649801,-480.0,0.00015068,2]
[383661425,1757076649810,-480.0,0.00015068,2]
[383661428,1757076649820,-1516.62,0.00015068,2]
[383661429,1757076649829,-523.93,0.00015068,2]
[383661431,1757076649839,-151.0,0.00015068,2]
[383661433,1757076649848,-480.0,0.00015068,2]
[383661435,1757076649857,-480.0,0.00015068,2]
[383661437,1757076649867,-979.42,0.00015068,2]
[383661439,1757076649876,-502.18758926,0.00015068,2]
[383661441,1757076649885,-480.0,0.00015068,2]
[383661443,1757076649895,-480.0,0.00015068,2]
[383661445,1757076649906,-172.41663021,0.00015068,2]
[383661447,1757076649917,-12192.34,0.00015068,2]
[383661450,1757076649927,-480.0,0.00015068,2]
[383661452,1757076649936,-480.0,0.00015068,2]
[383661453,1757076649946,-480.0,0.00015068,2]
[383661455,1757076649955,-480.0,0.00015068,2]
[383661458,1757076649965,-480.0,0.00015068,2]
[383661460,1757076649974,-574.88,0.00015068,2]
[383661462,1757076649984,-244.29,0.00015068,2]
[383661464,1757076649994,-480.0,0.00015068,2]
[383661466,1757076650004,-480.0,0.00015068,2]
[383661468,1757076650013,-480.0,0.00015068,2]
[383661470,1757076650022,-520.95,0.00015068,2]
[383661472,1757076650032,-480.0,0.00015068,2]
[383661474,1757076650042,-480.0,0.00015068,2]
[383661476,1757076650051,-619.76,0.00015068,2]
[383661478,1757076650061,-480.0,0.00015068,2]
[383661480,1757076650071,-582.66694091,0.00015068,2]
[383661482,1757076650080,-480.0,0.00015068,2]
[383661484,1757076650090,-1133.21,0.00015068,2]
[383661486,1757076650099,-480.0,0.00015068,2]
[383661488,1757076650108,-480.0,0.00015068,2]
[383661490,1757076650117,-480.0,0.00015068,2]
[383661492,1757076650127,-480.0,0.00015068,2]
[383661494,1757076650136,-634.07,0.00015068,2]
[383661496,1757076650145,-549.27,0.00015068,2]
[383661498,1757076650155,-480.0,0.00015068,2]
[383661500,1757076650164,-480.0,0.00015068,2]
[383661502,1757076650173,-1034.63,0.00015068,2]
[383661504,1757076650182,-1500.0,0.00015068,2]
[383661505,1757076650191,-1500.0,0.00015068,2]
[383661508,1757076650201,-157.658496,0.00015095,5]
[383661510,1757076650211,-1080.81283561,0.00015121,2]
[383661512,1757076650220,-1000.0,0.00015121,2]
[383661514,1757076650230,-1000.0,0.00015121,2]
[383661516,1757076650239,-1000.4223408,0.00015121,2]
[383661517,1757076650249,-155.28187475,0.00015121,2]
[383661520,1757076650258,-1000.0,0.00015121,2]
[383661521,1757076650268,-1000.0,0.00015121,2]
[383661523,1757076650277,-1000.0,0.00015121,2]
[383661525,1757076650287,-1000.0,0.00015121,2]
[383661527,1757076650296,-1000.0,0.00015121,2]
[383661530,1757076650306,-1000.0,0.00015121,2]
[383661531,1757076650315,-1000.0,0.00015121,2]
[383661534,1757076650324,-1000.0,0.00015121,2]
[383661536,1757076650333,-905.0,0.00015242,2]
[383661538,1757076650342,-905.0,0.00015246,2]
[383661539,1757076650351,-203.58798597,0.00015342,2]
[383661541,1757076650361,-480.0,0.00015342,2]
[383661543,1757076650371,-480.0,0.00015342,2]
[383661546,1757076650381,-480.0,0.00015342,2]
[383661548,1757076650390,-480.0,0.00015342,2]
[383661550,1757076650399,-1544.22,0.00015342,2]
[383661552,1757076650409,-480.0,0.00015342,2]
[383661554,1757076650420,-2572.66,0.00015342,2]
[383661556,1757076650429,-480.0,0.00015342,2]
[383661557,1757076650438,-678.87,0.00015342,2]
[383661559,1757076650447,-480.0,0.00015342,2]
[383661562,1757076650457,-716.31,0.00015342,2]
[383661564,1757076650467,-480.0,0.00015342,2]
[383661565,1757076650476,-480.0,0.00015342,2]
[383661568,1757076650485,-1516.62,0.00015342,2]
[383661570,1757076650495,-523.93,0.00015342,2]
[383661571,1757076650504,-480.0,0.00015342,2]
[383661574,1757076650514,-480.0,0.00015342,2]
[383661575,1757076650523,-979.42,0.00015342,2]
[383661577,1757076650533,-480.0,0.00015342,2]
[383661579,1757076650542,-480.0,0.00015342,2]
[383661581,1757076650552,-12192.34,0.00015342,2]
[383661583,1757076650562,-480.0,0.00015342,2]
[383661585,1757076650571,-480.0,0.00015342,2]
[383661588,1757076650580,-480.0,0.00015342,2]
[383661590,1757076650590,-574.88,0.00015342,2]
[383661591,1757076650599,-480.0,0.00015342,2]
[383661593,1757076650608,-480.0,0.00015342,2]
[383661595,1757076650618,-480.0,0.00015342,2]
[383661598,1757076650627,-520.95,0.00015342,2]
[383661600,1757076650636,-480.0,0.00015342,2]
[383661602,1757076650646,-480.0,0.00015342,2]
[383661604,1757076650655,-619.76,0.00015342,2]
[383661606,1757076650667,-480.0,0.00015342,2]
[383661608,1757076650677,-483.39,0.00015342,2]
[383661610,1757076650687,-1133.21,0.00015342,2]
[383661612,1757076650696,-480.0,0.00015342,2]
[383661613,1757076650706,-480.0,0.00015342,2]
[383661616,1757076650717,-480.0,0.00015342,2]
[383661618,1757076650726,-480.0,0.00015342,2]
[383661620,1757076650735,-634.07,0.00015342,2]
[383661622,1757076650745,-151.0,0.00015342,2]
[383661624,1757076650754,-549.27,0.00015342,2]
[383661626,1757076650763,-151.0,0.00015342,2]
[383661628,1757076650772,-480.0,0.00015342,2]
[383661630,1757076650782,-540.57,0.00015342,2]
[383661632,1757076650791,-720.0,0.00015368,2]
[383661634,1757076650800,-315.67565777,0.00015368,2]
[383661636,1757076650809,-168.0,0.00015494,2]
[383661638,1757076650821,-168.0,0.00015518,2]
[383661640,1757076650831,-168.0,0.00015545,2]
[383661642,1757076650840,-500.0,0.00015563,2]
[383661644,1757076650849,-500.0,0.00015613,2]
[383661646,1757076650859,-500.0,0.00015613,2]
[383661648,1757076650868,-500.0,0.00015613,2]
[383661650,1757076650877,-500.0,0.00015613,2]
[383661652,1757076650889,-151.0,0.00015615,2]
[383661654,1757076650898,-253.154088,0.00015616,2]
[383661656,1757076650907,-151.0,0.00015616,2]
[383661658,1757076650917,-480.0,0.00015616,2]
[383661660,1757076650927,-480.0,0.00015616,2]
[383661662,1757076650936,-480.0,0.00015616,2]
[383661664,1757076650946,-1544.22,0.00015616,2]
[383661666,1757076650956,-480.0,0.00015616,2]
[383661668,1757076650965,-2572.66,0.00015616,2]
[383661670,1757076650975,-678.87,0.00015616,2]
[383661672,1757076650984,-480.0,0.00015616,2]
[383661674,1757076650994,-716.31,0.00015616,2]
[383661676,1757076651004,-480.0,0.00015616,2]
[383661678,1757076651013,-475.83577866,0.00015616,2]
[383661680,1757076651022,-1516.62,0.00015616,2]
[383661682,1757076651032,-523.93,0.00015616,2]
[383661684,1757076651042,-151.0,0.00015616,2]
[383661686,1757076651052,-480.0,0.00015616,2]
[383661688,1757076651061,-480.0,0.00015616,2]
[383661690,1757076651072,-979.42,0.00015616,2]
[383661692,1757076651083,-480.0,0.00015616,2]
[383661694,1757076651093,-480.0,0.00015616,2]
[383661696,1757076651103,-12192.34,0.00015616,2]
[383661698,1757076651112,-480.0,0.00015616,2]
[383661700,1757076651121,-480.0,0.00015616,2]
[383661702,1757076651131,-574.88,0.00015616,2]
[383661704,1757076651140,-480.0,0.00015616,2]
[383661706,1757076651149,-480.0,0.00015616,2]
[383661708,1757076651159,-520.95,0.00015616,2]
[383661710,1757076651171,-480.0,0.00015616,2]
[383661712,1757076651181,-480.0,0.00015616,2]
[383661714,1757076651190,-619.76,0.00015616,2]
[383661716,1757076651200,-480.0,0.00015616,2]
[383661718,1757076651209,-1133.21,0.00015616,2]
[383661720,1757076651218,-480.0,0.00015616,2]
[383661722,1757076651227,-480.0,0.00015616,2]
[383661724,1757076651237,-480.0,0.00015616,2]
[383661727,1757076651248,-480.0,0.00015616,2]
[383661729,1757076651257,-634.07,0.00015616,2]
[383661731,1757076651266,-549.27,0.00015616,2]
[383661733,1757076651277,-204.75,0.00015616,2]
[383661735,1757076651287,-2000.0,0.00015616,2]
[383661737,1757076651297,-168.0,0.00015637,2]
[383661738,1757076651306,-160.0,0.0001566,2]
[383661740,1757076651316,-905.0,0.00015663,2]
[383661742,1757076651325,-168.0,0.00015702,2]
[383661744,1757076651334,-168.0,0.00015709,2]
[383661746,1757076651344,-905.0,0.0001575,2]
[383661748,1757076651353,-905.0,0.00015756,2]
[383661750,1757076651362,-151.0,0.000158,2]
[383661752,1757076651372,-480.0,0.0001589,2]
[383661754,1757076651382,-480.0,0.0001589,2]
[383661756,1757076651392,-480.0,0.0001589,2]
[383661758,1757076651401,-1544.22,0.0001589,2]
[383661761,1757076651413,-480.0,0.0001589,2]
[383661763,1757076651422,-2572.66,0.0001589,2]
[383661764,1757076651431,-678.87,0.0001589,2]
[383661766,1757076651440,-480.0,0.0001589,2]
[383661768,1757076651449,-716.31,0.0001589,2]
[383661770,1757076651459,-264.01670261,0.0001589,2]
[383661772,1757076651468,-1516.62,0.0001589,2]
[383661774,1757076651478,-523.93,0.0001589,2]
[383661776,1757076651487,-480.0,0.0001589,2]
[383661778,1757076651496,-480.0,0.0001589,2]
[383661781,1757076651506,-979.42,0.0001589,2]
[383661783,1757076651515,-480.0,0.0001589,2]
[383661785,1757076651525,-12192.34,0.0001589,2]
[383661787,1757076651534,-480.0,0.0001589,2]
[383661789,1757076651544,-480.0,0.0001589,2]
[383661791,1757076651553,-574.88,0.0001589,2]
[383661793,1757076651562,-480.0,0.0001589,2]
[383661795,1757076651571,-480.0,0.0001589,2]
[383661797,1757076651580,-520.95,0.0001589,2]
[383661799,1757076651590,-480.0,0.0001589,2]
[383661801,1757076651599,-170.79300195,0.0001589,2]
[383661803,1757076651608,-619.76,0.0001589,2]
[383661805,1757076651617,-480.0,0.0001589,2]
[383661806,1757076651627,-1133.21,0.0001589,2]
[383661808,1757076651636,-212.72,0.0001589,2]
[383661810,1757076651646,-480.0,0.0001589,2]
[383661812,1757076651656,-480.0,0.0001589,2]
[383661814,1757076651666,-480.0,0.0001589,2]
[383661816,1757076651675,-634.07,0.0001589,2]
[383661818,1757076651684,-549.27,0.0001589,2]
[383661820,1757076651694,-905.0,0.00015919,2]
[383661822,1757076651703,-168.0,0.00015939,2]
[383661824,1757076651712,-611.30614242,0.00015973,2]
[383661826,1757076651723,-168.0,0.00015976,2]
[383661828,1757076651732,-905.0,0.0001605,2]
[383661830,1757076651742,-168.0,0.00016051,2]
[383661832,1757076651751,-151.0,0.000161,2]
[383661834,1757076651760,-1000.0,0.0001611,2]
[383661836,1757076651769,-905.0,0.00016116,2]
[383661838,1757076651778,-1000.0,0.00016161,2]
[383661840,1757076651788,-480.0,0.00016164,2]
[383661842,1757076651798,-273.125286,0.00016164,2]
[383661844,1757076651808,-480.0,0.00016164,2]
[383661846,1757076651817,-1544.22,0.00016164,2]
[383661848,1757076651826,-480.0,0.00016164,2]
[383661850,1757076651835,-2572.66,0.00016164,2]
[383661852,1757076651844,-678.87,0.00016164,2]
[383661854,1757076651853,-480.0,0.00016164,2]
[383661856,1757076651863,-716.31,0.00016164,2]
[383661858,1757076651872,-1516.62,0.00016164,2]
[383661860,1757076651882,-523.93,0.00016164,2]
[383661862,1757076651891,-480.0,0.00016164,2]
[383661864,1757076651900,-480.0,0.00016164,2]
[383661866,1757076651909,-979.42,0.00016164,2]
[383661868,1757076651921,-480.0,0.00016164,2]
[383661870,1757076651930,-12192.34,0.00016164,2]
[383661872,1757076651939,-480.0,0.00016164,2]
[383661874,1757076651949,-480.0,0.00016164,2]
[383661876,1757076651958,-574.88,0.00016164,2]
[383661878,1757076651968,-480.0,0.00016164,2]
[383661880,1757076651978,-480.0,0.00016164,2]
[383661882,1757076651988,-520.95,0.00016164,2]
[383661884,1757076651999,-480.0,0.00016164,2]
[383661886,1757076652008,-619.76,0.00016164,2]
[383661888,1757076652017,-511.77005141,0.00016164,2]
[383661890,1757076652026,-1133.21,0.00016164,2]
[383661892,1757076652035,-480.0,0.00016164,2]
[383661894,1757076652044,-480.0,0.00016164,2]
[383661896,1757076652054,-480.0,0.00016164,2]
[383661898,1757076652063,-634.07,0.00016164,2]
[383661900,1757076652074,-549.27,0.00016164,2]
[383661902,1757076652085,-260.0,0.00016208,2]
[383661904,1757076652094,-168.0,0.00016228,2]
[383661906,1757076652103,-168.0,0.0001627,2]
[383661908,1757076652112,-500.0,0.00016312,2]
[383661910,1757076652120,-500.0,0.00016312,2]
[383661912,1757076652130,-168.0,0.00016354,2]
[383661914,1757076652139,-151.0,0.000164,2]
[383661916,1757076652148,-168.0,0.00016423,2]
[383661918,1757076652157,-151.0,0.00016438,2]
[383661919,1757076652167,-480.0,0.00016438,2]
[383661921,1757076652177,-480.0,0.00016438,2]
[383661923,1757076652186,-1544.22,0.00016438,2]
[383661925,1757076652195,-480.0,0.00016438,2]
[383661927,1757076652204,-2572.66,0.00016438,2]
[383661929,1757076652213,-678.87,0.00016438,2]
[383661931,1757076652222,-480.0,0.00016438,2]
[383661933,1757076652232,-716.31,0.00016438,2]
[383661935,1757076652241,-1516.62,0.00016438,2]
[383661937,1757076652250,-523.93,0.00016438,2]
[383661939,1757076652260,-480.0,0.00016438,2]
[383661942,1757076652269,-480.0,0.00016438,2]
[383661944,1757076652279,-979.42,0.00016438,2]
[383661946,1757076652288,-480.0,0.00016438,2]
[383661948,1757076652297,-12192.34,0.00016438,2]
[383661950,1757076652306,-480.0,0.00016438,2]
[383661952,1757076652315,-480.0,0.00016438,2]
[383661953,1757076652325,-574.88,0.00016438,2]
[383661955,1757076652337,-480.0,0.00016438,2]
[383661958,1757076652346,-480.0,0.00016438,2]
[383661960,1757076652356,-520.95,0.00016438,2]
[383661962,1757076652365,-480.0,0.00016438,2]
[383661964,1757076652374,-619.76,0.00016438,2]
[383661966,1757076652386,-1133.21,0.00016438,2]
[383661968,1757076652397,-480.0,0.00016438,2]
[383661970,1757076652406,-480.0,0.00016438,2]
[383661972,1757076652416,-480.0,0.00016438,2]
[383661974,1757076652426,-634.07,0.00016438,2]
[383661976,1757076652435,-549.27,0.00016438,2]
[383661978,1757076652444,-587.0,0.00016449,2]
[383661980,1757076652453,-168.0,0.00016502,2]
[383661982,1757076652463,-168.0,0.00016522,2]
[383661984,1757076652472,-905.0,0.00016551,2]
[383661986,1757076652481,-168.0,0.00016624,2]
[383661988,1757076652489,-480.0,0.00016712,2]
[383661990,1757076652499,-480.0,0.00016712,2]
[383661992,1757076652508,-1544.22,0.00016712,2]
[383661994,1757076652517,-480.0,0.00016712,2]
[383661996,1757076652527,-2572.66,0.00016712,2]
[383661998,1757076652536,-678.87,0.00016712,2]
[383662000,1757076652545,-480.0,0.00016712,2]
[383662002,1757076652554,-716.31,0.00016712,2]
[383662004,1757076652564,-1516.62,0.00016712,2]
[383662006,1757076652574,-523.93,0.00016712,2]
[383662008,1757076652583,-480.0,0.00016712,2]
[383662010,1757076652592,-480.0,0.00016712,2]
[383662023,1757076652705,-979.42,0.00016712,2]
[383662026,1757076652715,-480.0,0.00016712,2]
[383662028,1757076652725,-12192.34,0.00016712,2]
[383662030,1757076652734,-480.0,0.00016712,2]
[383662031,1757076652743,-480.0,0.00016712,2]
[383662033,1757076652752,-574.88,0.00016712,2]
[383662035,1757076652761,-480.0,0.00016712,2]
[383662037,1757076652771,-480.0,0.00016712,2]
[383662039,1757076652780,-520.95,0.00016712,2]
[383662041,1757076652789,-480.0,0.00016712,2]
[383662043,1757076652799,-619.76,0.00016712,2]
[383662045,1757076652809,-1133.21,0.00016712,2]
[383662048,1757076652820,-480.0,0.00016712,2]
[383662050,1757076652829,-480.0,0.00016712,2]
[383662052,1757076652841,-480.0,0.00016712,2]
[383662054,1757076652852,-634.07,0.00016712,2]
[383662056,1757076652861,-549.27,0.00016712,2]
[383662058,1757076652871,-360.0,0.00016756,2]
[383662060,1757076652880,-864.0,0.00016905,2]
[383662062,1757076652889,-480.0,0.00016986,2]
[383662064,1757076652899,-480.0,0.00016986,2]
[383662065,1757076652909,-1544.22,0.00016986,2]
[383662067,1757076652919,-480.0,0.00016986,2]
[383662070,1757076652929,-2572.66,0.00016986,2]
[383662071,1757076652939,-1068.73461694,0.00016986,2]
[383662073,1757076652948,-678.87,0.00016986,2]
[383662075,1757076652958,-480.0,0.00016986,2]
[383662077,1757076652967,-716.31,0.00016986,2]
[383662079,1757076652976,-1516.62,0.00016986,2]
[383662081,1757076652986,-523.93,0.00016986,2]
[383662083,1757076652996,-1282.90460309,0.00016986,2]
[383662085,1757076653005,-480.0,0.00016986,2]
[383662087,1757076653015,-620.33400792,0.00016986,2]
[383662089,1757076653024,-979.42,0.00016986,2]
[383662092,1757076653034,-480.0,0.00016986,2]
[383662094,1757076653043,-12192.34,0.00016986,2]
[383662096,1757076653052,-480.0,0.00016986,2]
[383662097,1757076653062,-480.0,0.00016986,2]
[383662100,1757076653072,-574.88,0.00016986,2]
[383662101,1757076653084,-480.0,0.00016986,2]
[383662103,1757076653093,-480.0,0.00016986,2]
[383662105,1757076653103,-520.95,0.00016986,2]
[383662108,1757076653112,-480.0,0.00016986,2]
[383662110,1757076653122,-619.76,0.00016986,2]
[383662112,1757076653131,-1133.21,0.00016986,2]
[383662114,1757076653141,-480.0,0.00016986,2]
[383662116,1757076653150,-480.0,0.00016986,2]
[383662118,1757076653160,-480.0,0.00016986,2]
[383662120,1757076653171,-634.07,0.00016986,2]
[383662122,1757076653181,-549.27,0.00016986,2]
[383662124,1757076653190,-6705.71514064,0.00017,2]
[383662126,1757076653199,-1923.8580655,0.00017098,2]
[383662128,1757076653209,-9447.1400772,0.00017098,2]
[383662130,1757076653218,-975.0,0.0001725,2]
[383662132,1757076653228,-633.0,0.0001725,2]
[383662134,1757076653237,-2153.0,0.0001725,2]
[383662135,1757076653246,-409.0,0.0001725,2]
[383662136,1757076653256,-1801.40221295,0.0001726,2]
[383662137,1757076653265,-480.0,0.0001726,2]
[383662138,1757076653275,-198.3,0.0001726,2]
[383662139,1757076653284,-1544.22,0.0001726,2]
[383662140,1757076653294,-480.0,0.0001726,2]
[383662141,1757076653303,-2572.66,0.0001726,2]
[383662142,1757076653312,-678.87,0.0001726,2]
[383662143,1757076653321,-480.0,0.0001726,2]
[383662144,1757076653330,-716.31,0.0001726,2]
[383662145,1757076653339,-1516.62,0.0001726,2]
[383662146,1757076653348,-523.93,0.0001726,2]
[383662147,1757076653356,-480.0,0.0001726,2]
[383662148,1757076653366,-979.42,0.0001726,2]
[383662149,1757076653375,-480.0,0.0001726,2]
[383662150,1757076653383,-12192.34,0.0001726,2]
[383662151,1757076653392,-480.0,0.0001726,2]
[383662152,1757076653401,-480.0,0.0001726,2]
[383662154,1757076653411,-157.0,0.0001726,2]
[383662156,1757076653421,-574.88,0.0001726,2]
[383662158,1757076653430,-480.0,0.0001726,2]
[383662160,1757076653440,-500.0,0.0001726,2]
[383662162,1757076653449,-480.0,0.0001726,2]
[383662164,1757076653458,-520.95,0.0001726,2]
[383662166,1757076653467,-480.0,0.0001726,2]
[383662168,1757076653477,-619.76,0.0001726,2]
[383662170,1757076653486,-157.0,0.0001726,2]
[383662172,1757076653496,-1133.21,0.0001726,2]
[383662174,1757076653505,-500.0,0.0001726,2]
[383662176,1757076653514,-480.0,0.0001726,2]
[383662178,1757076653523,-480.0,0.0001726,2]
[383662180,1757076653533,-480.0,0.0001726,2]
[383662182,1757076653543,-634.07,0.0001726,2]
[383662184,1757076653556,-549.27,0.0001726,2]
[383662186,1757076653567,-163.07519606,0.0001749,2]
[383662188,1757076653578,-157.0,0.00017534,2]
[383662190,1757076653588,-500.0,0.00017534,2]
[383662192,1757076653598,-239.0,0.00017534,2]
[383662194,1757076653607,-500.0,0.00017534,2]
[383662196,1757076653617,-151.0,0.00017534,2]
[383662198,1757076653626,-480.0,0.00017534,2]
[383662200,1757076653635,-1544.22,0.00017534,2]
[383662202,1757076653645,-480.0,0.00017534,2]
[383662204,1757076653655,-2572.66,0.00017534,2]
[383662206,1757076653665,-678.87,0.00017534,2]
[383662208,1757076653675,-480.0,0.00017534,2]
[383662210,1757076653684,-716.31,0.00017534,2]
[383662212,1757076653693,-1516.62,0.00017534,2]
[383662214,1757076653703,-523.93,0.00017534,2]
[383662216,1757076653712,-480.0,0.00017534,2]
[383662218,1757076653721,-979.42,0.00017534,2]
[383662220,1757076653732,-480.0,0.00017534,2]
[383662222,1757076653742,-12192.34,0.00017534,2]
[383662224,1757076653752,-480.0,0.00017534,2]
[383662226,1757076653761,-480.0,0.00017534,2]
[383662228,1757076653771,-574.88,0.00017534,2]
[383662230,1757076653780,-480.0,0.00017534,2]
[383662233,1757076653792,-480.0,0.00017534,2]
[383662235,1757076653802,-520.95,0.00017534,2]
[383662237,1757076653812,-543.71405952,0.00017534,2]
[383662239,1757076653822,-619.76,0.00017534,2]
[383662241,1757076653831,-1133.21,0.00017534,2]
[383662243,1757076653840,-480.0,0.00017534,2]
[383662245,1757076653850,-480.0,0.00017534,2]
[383662247,1757076653859,-332.07628239,0.00017534,2]
[383662249,1757076653869,-634.07,0.00017534,2]
[383662251,1757076653878,-549.27,0.00017534,2]
[383662253,1757076653887,-290.0,0.00017808,2]
[383662255,1757076653897,-500.0,0.00017808,2]
[383662257,1757076653906,-500.0,0.00017808,2]
[383662259,1757076653916,-480.0,0.00017808,2]
[383662261,1757076653925,-1544.22,0.00017808,2]
[383662263,1757076653935,-410.36536784,0.00017808,2]
[383662265,1757076653944,-2572.66,0.00017808,2]
[383662267,1757076653953,-678.87,0.00017808,2]
[383662269,1757076653962,-480.0,0.00017808,2]
[383662271,1757076653971,-716.31,0.00017808,2]
[383662273,1757076653980,-1516.62,0.00017808,2]
[383662275,1757076653990,-523.93,0.00017808,2]
[383662277,1757076653999,-480.0,0.00017808,2]
[383662279,1757076654008,-979.42,0.00017808,2]
[383662281,1757076654018,-480.0,0.00017808,2]